[Event "Titled Tuesday Blitz July 6 2021"]
[White "Tokman, Ariel"]
[Black "Pavlidis, Anastasios"]
[WhiteFideId "117420"]
[BlackFideId "4208404"]
[WhiteElo "2345"]
[BlackElo "2136"]
[Result "0-1"]
[Round "10"]
[TimeControl "180+1"]
[Date "2021.07.06"]
[WhiteClock "0:00:02"]
[BlackClock "0:01:02"]

1. e4 {[%clk 0:03:00]}  c6 {[%clk 0:02:59]} 2. Nc3 {[%clk 0:03:00]}  d5 {[%clk 0:02:58]} 3. d3 {[%clk 0:03:01]}  dxe4 {[%clk 0:02:57]} 4. Nxe4 {[%clk 0:03:01]}  Nf6 {[%clk 0:02:58]} 5. Qe2 {[%clk 0:02:57]}  Bf5 {[%clk 0:02:57]} 6. Ng3 {[%clk 0:02:54]}  Bg6 {[%clk 0:02:56]} 7. Nf3 {[%clk 0:02:54]}  Qc7 {[%clk 0:02:54]} 8. Ne5 {[%clk 0:02:53]}  Nbd7 {[%clk 0:02:53]} 9. Nxg6 {[%clk 0:02:50]}  hxg6 {[%clk 0:02:52]} 10. Bd2 {[%clk 0:02:51]}  O-O-O {[%clk 0:02:50]} 11. O-O-O {[%clk 0:02:49]}  e6 {[%clk 0:02:50]} 12. h3 {[%clk 0:02:45]}  Nd5 {[%clk 0:02:49]} 13. Ne4 {[%clk 0:02:42]}  Nc5 {[%clk 0:02:35]} 14. g3 {[%clk 0:02:37]}  Nxe4 {[%clk 0:02:33]} 15. dxe4 {[%clk 0:02:28]}  Nb4 {[%clk 0:02:33]} 16. a3 {[%clk 0:02:20]}  Na6 {[%clk 0:02:30]} 17. Bg2 {[%clk 0:02:10]}  Nc5 {[%clk 0:02:21]} 18. Qc4 {[%clk 0:02:09]}  Nd7 {[%clk 0:02:14]} 19. Bc3 {[%clk 0:02:04]}  Nb6 {[%clk 0:02:06]} 20. Rxd8+ {[%clk 0:02:02]}  Qxd8 {[%clk 0:02:06]} 21. Qe2 {[%clk 0:01:57]}  f6 {[%clk 0:02:01]} 22. Rd1 {[%clk 0:01:56]}  Qc7 {[%clk 0:02:01]} 23. h4 {[%clk 0:01:56]}  Bc5 {[%clk 0:01:59]} 24. Bh3 {[%clk 0:01:56]}  Re8 {[%clk 0:01:55]} 25. f4 {[%clk 0:01:21]}  Na4 {[%clk 0:01:54]} 26. Bb4 {[%clk 0:01:08]}  Bxb4 {[%clk 0:01:53]} 27. axb4 {[%clk 0:01:09]}  Qb6 {[%clk 0:01:52]} 28. c3 {[%clk 0:01:06]}  a5 {[%clk 0:01:48]} 29. bxa5 {[%clk 0:01:04]}  Qxa5 {[%clk 0:01:47]} 30. Qc4 {[%clk 0:01:04]}  Nc5 {[%clk 0:01:46]} 31. Kb1 {[%clk 0:00:58]}  Kc7 {[%clk 0:01:42]} 32. Qd4 {[%clk 0:00:47]}  Ra8 {[%clk 0:01:40]} 33. Qd6+ {[%clk 0:00:46]}  Kb6 {[%clk 0:01:40]} 34. Qd4 {[%clk 0:00:37]}  Qa2+ {[%clk 0:01:39]} 35. Kc2 {[%clk 0:00:36]}  Qb3+ {[%clk 0:01:37]} 36. Kb1 {[%clk 0:00:31]}  Qa2+ {[%clk 0:01:28]} 37. Kc2 {[%clk 0:00:30]}  Qb3+ {[%clk 0:01:28]} 38. Kb1 {[%clk 0:00:31]}  Ra4 {[%clk 0:01:22]} 39. Qd8+ {[%clk 0:00:19]}  Ka7 {[%clk 0:01:20]} 40. Qd6 {[%clk 0:00:19]}  Qa2+ {[%clk 0:01:17]} 41. Kc2 {[%clk 0:00:19]}  Qb3+ {[%clk 0:01:11]} 42. Kb1 {[%clk 0:00:19]}  Qb5 {[%clk 0:01:10]} 43. Bf1 {[%clk 0:00:18]}  Qa5 {[%clk 0:01:07]} 44. Kc2 {[%clk 0:00:11]}  Ra2 {[%clk 0:01:06]} 45. Bc4 {[%clk 0:00:08]}  Qa4+ {[%clk 0:01:03]} 46. Kd2 {[%clk 0:00:02]}  Qxc4 {[%clk 0:01:02]} 0-1


[Site "https://www.chess.com"]

[Event "Titled Tuesday Blitz July 6 2021"]
[White "Tomiello, Mateus Costamilan"]
[Black "Molina, Roberto Junio Brito"]
[WhiteFideId "22701958"]
[BlackFideId "2109450"]
[WhiteElo "1995"]
[BlackElo "2402"]
[Result "0-1"]
[Round "10"]
[TimeControl "180+1"]
[Date "2021.07.06"]
[WhiteClock "0:00:15"]
[BlackClock "0:01:23"]

1. e4 {[%clk 0:03:00]}  c5 {[%clk 0:02:59]} 2. Nf3 {[%clk 0:03:01]}  e6 {[%clk 0:02:59]} 3. d4 {[%clk 0:03:00]}  cxd4 {[%clk 0:03:00]} 4. Nxd4 {[%clk 0:03:01]}  Nc6 {[%clk 0:02:59]} 5. Nc3 {[%clk 0:03:01]}  Qc7 {[%clk 0:02:59]} 6. Be3 {[%clk 0:03:01]}  a6 {[%clk 0:02:58]} 7. f3 {[%clk 0:02:59]}  Nf6 {[%clk 0:02:58]} 8. Qd2 {[%clk 0:03:00]}  Bb4 {[%clk 0:02:57]} 9. a3 {[%clk 0:02:54]}  Be7 {[%clk 0:02:56]} 10. g4 {[%clk 0:02:41]}  b5 {[%clk 0:02:49]} 11. g5 {[%clk 0:02:23]}  Nh5 {[%clk 0:02:46]} 12. Nce2 {[%clk 0:02:15]}  Bb7 {[%clk 0:02:42]} 13. Nxc6 {[%clk 0:02:03]}  dxc6 {[%clk 0:02:38]} 14. O-O-O {[%clk 0:01:58]}  c5 {[%clk 0:02:35]} 15. Nf4 {[%clk 0:01:22]}  Rd8 {[%clk 0:02:24]} 16. Nxh5 {[%clk 0:00:38]}  Rxd2 {[%clk 0:02:22]} 17. Rxd2 {[%clk 0:00:39]}  O-O {[%clk 0:02:18]} 18. h4 {[%clk 0:00:37]}  Rd8 {[%clk 0:02:16]} 19. Rhh2 {[%clk 0:00:35]}  Bc6 {[%clk 0:01:38]} 20. Bf4 {[%clk 0:00:31]}  Qc8 {[%clk 0:01:35]} 21. Be5 {[%clk 0:00:29]}  Bf8 {[%clk 0:01:29]} 22. Bh3 {[%clk 0:00:20]}  b4 {[%clk 0:01:26]} 23. axb4 {[%clk 0:00:19]}  cxb4 {[%clk 0:01:26]} 24. Rxd8 {[%clk 0:00:17]}  Qxd8 {[%clk 0:01:27]} 25. Rd2 {[%clk 0:00:17]}  Qa5 {[%clk 0:01:26]} 26. b3 {[%clk 0:00:15]}  Qxe5 {[%clk 0:01:23]} 0-1


[Site "https://www.chess.com"]

[Event "Titled Tuesday Blitz July 6 2021"]
[White "Vazquez Espino, Uriel"]
[Black "Leenhouts, Koen"]
[WhiteFideId "5119138"]
[BlackFideId "1008439"]
[WhiteElo "2219"]
[BlackElo "2409"]
[Result "0-1"]
[Round "10"]
[TimeControl "180+1"]
[Date "2021.07.06"]
[WhiteClock "0:00:15"]
[BlackClock "0:00:10"]

1. e4 {[%clk 0:03:00]}  c5 {[%clk 0:02:57]} 2. Nf3 {[%clk 0:03:00]}  e6 {[%clk 0:02:57]} 3. d4 {[%clk 0:03:00]}  cxd4 {[%clk 0:02:57]} 4. Nxd4 {[%clk 0:03:01]}  a6 {[%clk 0:02:56]} 5. g3 {[%clk 0:02:59]}  Nf6 {[%clk 0:02:53]} 6. Bg2 {[%clk 0:02:59]}  Qc7 {[%clk 0:02:53]} 7. O-O {[%clk 0:02:57]}  Bc5 {[%clk 0:02:49]} 8. Nc3 {[%clk 0:02:53]}  O-O {[%clk 0:02:48]} 9. Bg5 {[%clk 0:02:45]}  Nc6 {[%clk 0:02:42]} 10. Nxc6 {[%clk 0:02:36]}  dxc6 {[%clk 0:02:41]} 11. Bxf6 {[%clk 0:02:32]}  gxf6 {[%clk 0:02:42]} 12. Qg4+ {[%clk 0:02:28]}  Kh8 {[%clk 0:02:41]} 13. Kh1 {[%clk 0:02:10]}  b5 {[%clk 0:01:59]} 14. f4 {[%clk 0:02:04]}  Be7 {[%clk 0:01:46]} 15. Rae1 {[%clk 0:01:44]}  c5 {[%clk 0:01:36]} 16. e5 {[%clk 0:01:41]}  f5 {[%clk 0:01:34]} 17. Qh5 {[%clk 0:01:37]}  Bb7 {[%clk 0:01:34]} 18. Rf2 {[%clk 0:01:29]}  c4 {[%clk 0:01:30]} 19. g4 {[%clk 0:01:07]}  Bc5 {[%clk 0:01:16]} 20. Rfe2 {[%clk 0:01:06]}  Rg8 {[%clk 0:01:08]} 21. g5 {[%clk 0:00:59]}  b4 {[%clk 0:00:58]} 22. Nd1 {[%clk 0:00:58]}  Rad8 {[%clk 0:00:56]} 23. Qh3 {[%clk 0:00:54]}  Rd4 {[%clk 0:00:48]} 24. Qg3 {[%clk 0:00:50]}  Rgd8 {[%clk 0:00:43]} 25. Nf2 {[%clk 0:00:36]}  Rd2 {[%clk 0:00:43]} 26. Bxb7 {[%clk 0:00:24]}  Qxb7+ {[%clk 0:00:40]} 27. Qg2 {[%clk 0:00:24]}  Qb6 {[%clk 0:00:23]} 28. Nh3 {[%clk 0:00:20]}  Rxe2 {[%clk 0:00:20]} 29. Qxe2 {[%clk 0:00:19]}  c3 {[%clk 0:00:16]} 30. b3 {[%clk 0:00:18]}  Qc6+ {[%clk 0:00:11]} 31. Qg2 {[%clk 0:00:18]}  Qxg2+ {[%clk 0:00:11]} 32. Kxg2 {[%clk 0:00:18]}  Rd2+ {[%clk 0:00:12]} 33. Kf3 {[%clk 0:00:17]}  Rxc2 {[%clk 0:00:13]} 34. g6 {[%clk 0:00:15]}  hxg6 {[%clk 0:00:12]} 35. Ng5 {[%clk 0:00:16]}  Kg7 {[%clk 0:00:10]} 36. h4 {[%clk 0:00:15]}  Rf2+ {[%clk 0:00:10]} 37. Kg3 {[%clk 0:00:15]}  Rxa2 {[%clk 0:00:11]} 38. Rd1 {[%clk 0:00:15]}  c2 {[%clk 0:00:10]} 39. Rd7 {[%clk 0:00:14]}  c1=Q {[%clk 0:00:10]} 40. Rxf7+ {[%clk 0:00:15]}  Kg8 {[%clk 0:00:10]} 0-1


[Site "https://www.chess.com"]

[Event "Titled Tuesday Blitz July 6 2021"]
[White "Villegas, Pierre"]
[Black "Lomaia, Diana"]
[WhiteFideId "654183"]
[BlackFideId "13612476"]
[WhiteElo "2411"]
[BlackElo "1742"]
[Result "1/2-1/2"]
[Round "10"]
[TimeControl "180+1"]
[Date "2021.07.06"]
[WhiteClock "0:00:04"]
[BlackClock "0:00:10"]

1. d4 {[%clk 0:03:00]}  d5 {[%clk 0:02:59]} 2. c4 {[%clk 0:03:00]}  dxc4 {[%clk 0:03:00]} 3. e3 {[%clk 0:02:55]}  Nf6 {[%clk 0:03:00]} 4. Bxc4 {[%clk 0:02:55]}  e6 {[%clk 0:03:00]} 5. Nf3 {[%clk 0:02:55]}  c5 {[%clk 0:03:01]} 6. O-O {[%clk 0:02:55]}  a6 {[%clk 0:03:01]} 7. dxc5 {[%clk 0:02:55]}  Qxd1 {[%clk 0:03:01]} 8. Rxd1 {[%clk 0:02:56]}  Bxc5 {[%clk 0:03:00]} 9. Be2 {[%clk 0:02:56]}  O-O {[%clk 0:02:57]} 10. a3 {[%clk 0:02:55]}  b5 {[%clk 0:02:54]} 11. b4 {[%clk 0:02:41]}  Be7 {[%clk 0:02:52]} 12. Nbd2 {[%clk 0:02:39]}  Bb7 {[%clk 0:02:53]} 13. Bb2 {[%clk 0:02:38]}  Nbd7 {[%clk 0:02:52]} 14. Nb3 {[%clk 0:02:38]}  Rac8 {[%clk 0:02:50]} 15. Nfd4 {[%clk 0:02:29]}  Nb6 {[%clk 0:02:47]} 16. Rac1 {[%clk 0:02:10]}  Na4 {[%clk 0:02:42]} 17. Ba1 {[%clk 0:02:10]}  Bd5 {[%clk 0:02:40]} 18. Na5 {[%clk 0:01:59]}  Rfd8 {[%clk 0:02:24]} 19. Ndc6 {[%clk 0:01:51]}  Bxc6 {[%clk 0:02:15]} 20. Rxd8+ {[%clk 0:01:49]}  Bxd8 {[%clk 0:02:12]} 21. Nxc6 {[%clk 0:01:39]}  Nd5 {[%clk 0:01:54]} 22. Kf1 {[%clk 0:01:11]}  Kf8 {[%clk 0:01:47]} 23. e4 {[%clk 0:00:58]}  Nf4 {[%clk 0:01:40]} 24. Be5 {[%clk 0:00:49]}  Nxe2 {[%clk 0:01:31]} 25. Kxe2 {[%clk 0:00:50]}  Bf6 {[%clk 0:01:21]} 26. Bd6+ {[%clk 0:00:46]}  Ke8 {[%clk 0:01:21]} 27. e5 {[%clk 0:00:45]}  Bg5 {[%clk 0:01:21]} 28. Rc2 {[%clk 0:00:45]}  Nb6 {[%clk 0:01:21]} 29. Nd4 {[%clk 0:00:37]}  Nc4 {[%clk 0:01:18]} 30. g3 {[%clk 0:00:33]}  Nxd6 {[%clk 0:01:13]} 31. exd6 {[%clk 0:00:32]}  Rxc2+ {[%clk 0:01:13]} 32. Nxc2 {[%clk 0:00:33]}  Kd7 {[%clk 0:01:14]} 33. Nd4 {[%clk 0:00:31]}  Kxd6 {[%clk 0:01:13]} 34. Nb3 {[%clk 0:00:31]}  Kc6 {[%clk 0:01:04]} 35. Kd3 {[%clk 0:00:29]}  Be7 {[%clk 0:00:54]} 36. f4 {[%clk 0:00:28]}  Bd8 {[%clk 0:00:48]} 37. g4 {[%clk 0:00:23]}  Bb6 {[%clk 0:00:43]} 38. Ke4 {[%clk 0:00:23]}  Kd6 {[%clk 0:00:35]} 39. h4 {[%clk 0:00:20]}  g6 {[%clk 0:00:34]} 40. f5 {[%clk 0:00:20]}  exf5+ {[%clk 0:00:33]} 41. gxf5 {[%clk 0:00:21]}  Bf2 {[%clk 0:00:21]} 42. fxg6 {[%clk 0:00:14]}  fxg6 {[%clk 0:00:21]} 43. Kf3 {[%clk 0:00:15]}  Bxh4 {[%clk 0:00:21]} 44. Nc5 {[%clk 0:00:15]}  a5 {[%clk 0:00:20]} 45. Nb7+ {[%clk 0:00:15]}  Kc7 {[%clk 0:00:20]} 46. Nxa5 {[%clk 0:00:15]}  Be7 {[%clk 0:00:18]} 47. Nb3 {[%clk 0:00:15]}  g5 {[%clk 0:00:16]} 48. Nd4 {[%clk 0:00:15]}  Kb6 {[%clk 0:00:16]} 49. Kg4 {[%clk 0:00:15]}  Bf6 {[%clk 0:00:15]} 50. Nc2 {[%clk 0:00:10]}  h6 {[%clk 0:00:15]} 51. Kf5 {[%clk 0:00:09]}  Bb2 {[%clk 0:00:13]} 52. Kg4 {[%clk 0:00:09]}  Kc6 {[%clk 0:00:11]} 53. Kh5 {[%clk 0:00:09]}  Bg7 {[%clk 0:00:10]} 54. Kg6 {[%clk 0:00:09]}  Bf8 {[%clk 0:00:11]} 55. Nd4+ {[%clk 0:00:09]}  Kb6 {[%clk 0:00:10]} 56. Kh5 {[%clk 0:00:06]}  Bg7 {[%clk 0:00:10]} 57. Nf5 {[%clk 0:00:06]}  Bb2 {[%clk 0:00:09]} 58. Kxh6 {[%clk 0:00:06]}  g4 {[%clk 0:00:08]} 59. Kg5 {[%clk 0:00:06]}  Bxa3 {[%clk 0:00:09]} 60. Kxg4 {[%clk 0:00:04]}  Bxb4 {[%clk 0:00:10]} 61. Nd4 {[%clk 0:00:03]}  Bc5 {[%clk 0:00:10]} 62. Nxb5 {[%clk 0:00:04]} 1/2-1/2


[Site "https://www.chess.com"]

[Event "Titled Tuesday Blitz July 6 2021"]
[White "Vlassov, Nikolai"]
[Black "Stojanovski, Sandi"]
[WhiteFideId "4103360"]
[BlackFideId "1403249"]
[WhiteElo "2407"]
[BlackElo "2364"]
[Result "1-0"]
[Round "10"]
[TimeControl "180+1"]
[Date "2021.07.06"]
[WhiteClock "0:00:03"]
[BlackClock "0:00:01"]

1. g4 {[%clk 0:03:00]}  e5 {[%clk 0:02:57]} 2. Bg2 {[%clk 0:03:00]}  Nc6 {[%clk 0:02:57]} 3. c4 {[%clk 0:02:59]}  a5 {[%clk 0:02:36]} 4. Nc3 {[%clk 0:02:59]}  Bb4 {[%clk 0:02:33]} 5. Nf3 {[%clk 0:02:48]}  Bxc3 {[%clk 0:02:31]} 6. bxc3 {[%clk 0:02:46]}  d6 {[%clk 0:02:32]} 7. h3 {[%clk 0:02:45]}  h5 {[%clk 0:02:20]} 8. g5 {[%clk 0:02:41]}  e4 {[%clk 0:02:19]} 9. Nd4 {[%clk 0:02:40]}  Qxg5 {[%clk 0:02:15]} 10. Bxe4 {[%clk 0:02:39]}  Nxd4 {[%clk 0:02:14]} 11. cxd4 {[%clk 0:02:38]}  Nf6 {[%clk 0:02:09]} 12. d3 {[%clk 0:02:36]}  Qh4 {[%clk 0:02:08]} 13. Bf3 {[%clk 0:02:31]}  Bxh3 {[%clk 0:01:18]} 14. Bxb7 {[%clk 0:02:14]}  O-O {[%clk 0:01:13]} 15. e3 {[%clk 0:01:52]}  Rab8 {[%clk 0:01:04]} 16. Bg2 {[%clk 0:01:44]}  Ng4 {[%clk 0:00:22]} 17. Qe2 {[%clk 0:01:44]}  Rfe8 {[%clk 0:00:16]} 18. Rxh3 {[%clk 0:01:42]}  Qf6 {[%clk 0:00:14]} 19. Rxh5 {[%clk 0:01:34]}  Nh6 {[%clk 0:00:13]} 20. Rxa5 {[%clk 0:01:30]}  Nf5 {[%clk 0:00:12]} 21. Be4 {[%clk 0:01:22]}  Nxd4 {[%clk 0:00:09]} 22. exd4 {[%clk 0:00:29]}  Qxd4 {[%clk 0:00:08]} 23. Rb5 {[%clk 0:00:16]}  Rxb5 {[%clk 0:00:07]} 24. cxb5 {[%clk 0:00:16]}  f5 {[%clk 0:00:05]} 25. Bb2 {[%clk 0:00:11]}  Qb4+ {[%clk 0:00:05]} 26. Qd2 {[%clk 0:00:08]}  Qxb5 {[%clk 0:00:05]} 27. O-O-O {[%clk 0:00:07]}  fxe4 {[%clk 0:00:04]} 28. Qc3 {[%clk 0:00:05]}  Re7 {[%clk 0:00:03]} 29. dxe4 {[%clk 0:00:05]}  Qg5+ {[%clk 0:00:01]} 30. Kb1 {[%clk 0:00:05]}  Qg4 {[%clk 0:00:01]} 31. Rd3 {[%clk 0:00:04]}  Qf4 {[%clk 0:00:01]} 32. Rg3 {[%clk 0:00:03]} 1-0


[Site "https://www.chess.com"]

[Event "Titled Tuesday Blitz July 6 2021"]
[White "Wagner, Dennis"]
[Black "Kokoszczynski, Jan"]
[WhiteFideId "24650684"]
[BlackFideId "1174460"]
[WhiteElo "2355"]
[BlackElo "2166"]
[Result "1-0"]
[Round "10"]
[TimeControl "180+1"]
[Date "2021.07.06"]
[WhiteClock "0:00:59"]
[BlackClock "0:00:09"]

1. d4 {[%clk 0:03:00]}  f5 {[%clk 0:02:59]} 2. c4 {[%clk 0:03:00]}  Nf6 {[%clk 0:02:59]} 3. Nf3 {[%clk 0:02:59]}  g6 {[%clk 0:02:59]} 4. Nc3 {[%clk 0:02:52]}  Bg7 {[%clk 0:02:59]} 5. g3 {[%clk 0:02:52]}  O-O {[%clk 0:02:59]} 6. Bg2 {[%clk 0:02:53]}  d6 {[%clk 0:02:59]} 7. O-O {[%clk 0:02:53]}  c6 {[%clk 0:03:00]} 8. b3 {[%clk 0:02:52]}  a5 {[%clk 0:02:57]} 9. Bb2 {[%clk 0:02:53]}  Na6 {[%clk 0:02:51]} 10. Re1 {[%clk 0:02:52]}  Qc7 {[%clk 0:02:43]} 11. e4 {[%clk 0:02:48]}  fxe4 {[%clk 0:02:06]} 12. Nxe4 {[%clk 0:02:47]}  Nxe4 {[%clk 0:02:05]} 13. Rxe4 {[%clk 0:02:48]}  Bf5 {[%clk 0:02:05]} 14. Re3 {[%clk 0:02:48]}  Rae8 {[%clk 0:02:05]} 15. Nh4 {[%clk 0:02:37]}  Bc8 {[%clk 0:02:02]} 16. Qe2 {[%clk 0:02:34]}  Bf6 {[%clk 0:01:46]} 17. Nf3 {[%clk 0:02:27]}  Bf5 {[%clk 0:01:23]} 18. h3 {[%clk 0:02:20]}  Nb4 {[%clk 0:01:20]} 19. g4 {[%clk 0:02:17]}  Nc2 {[%clk 0:01:03]} 20. gxf5 {[%clk 0:02:16]}  Nxa1 {[%clk 0:00:56]} 21. fxg6 {[%clk 0:02:15]}  hxg6 {[%clk 0:00:54]} 22. Bxa1 {[%clk 0:02:14]}  Qd7 {[%clk 0:00:42]} 23. Re6 {[%clk 0:02:07]}  Kf7 {[%clk 0:00:39]} 24. Re4 {[%clk 0:02:02]}  Rh8 {[%clk 0:00:38]} 25. Bc3 {[%clk 0:02:00]}  Qf5 {[%clk 0:00:37]} 26. Qe3 {[%clk 0:01:53]}  Rh5 {[%clk 0:00:28]} 27. d5 {[%clk 0:01:44]}  cxd5 {[%clk 0:00:21]} 28. cxd5 {[%clk 0:01:43]}  Rc8 {[%clk 0:00:17]} 29. Bxf6 {[%clk 0:01:37]}  Qxf6 {[%clk 0:00:18]} 30. Nd4 {[%clk 0:01:32]}  Re5 {[%clk 0:00:16]} 31. Ne6 {[%clk 0:01:16]}  Rc2 {[%clk 0:00:12]} 32. a4 {[%clk 0:01:05]}  Rb2 {[%clk 0:00:11]} 33. Rxe5 {[%clk 0:01:01]}  dxe5 {[%clk 0:00:11]} 34. Be4 {[%clk 0:01:00]}  Qf4 {[%clk 0:00:09]} 35. Nxf4 {[%clk 0:00:59]} 1-0


[Site "https://www.chess.com"]

[Event "Titled Tuesday Blitz July 6 2021"]
[White "Weetik, Vjacheslav"]
[Black "Shevelev, Dmitry"]
[WhiteFideId "4153472"]
[BlackFideId "24233463"]
[WhiteElo "2469"]
[BlackElo "2482"]
[Result "1-0"]
[Round "10"]
[TimeControl "180+1"]
[Date "2021.07.06"]
[WhiteClock "0:00:08"]
[BlackClock "0:00:21"]

1. e4 {[%clk 0:03:00]}  c6 {[%clk 0:02:59]} 2. d4 {[%clk 0:03:00]}  d5 {[%clk 0:03:00]} 3. e5 {[%clk 0:03:01]}  g6 {[%clk 0:02:57]} 4. c4 {[%clk 0:03:00]}  Bg7 {[%clk 0:02:58]} 5. Nc3 {[%clk 0:03:00]}  Be6 {[%clk 0:02:56]} 6. cxd5 {[%clk 0:02:48]}  Bxd5 {[%clk 0:02:56]} 7. Nge2 {[%clk 0:02:31]}  Nd7 {[%clk 0:02:54]} 8. Nf4 {[%clk 0:02:10]}  Nb6 {[%clk 0:02:53]} 9. Nfxd5 {[%clk 0:02:01]}  Nxd5 {[%clk 0:02:53]} 10. Qb3 {[%clk 0:02:01]}  Qb6 {[%clk 0:02:41]} 11. Nxd5 {[%clk 0:01:59]}  Qxb3 {[%clk 0:02:41]} 12. axb3 {[%clk 0:01:51]}  cxd5 {[%clk 0:02:41]} 13. Bd2 {[%clk 0:01:29]}  Nh6 {[%clk 0:02:21]} 14. Ra5 {[%clk 0:01:19]}  O-O {[%clk 0:02:12]} 15. Rxd5 {[%clk 0:01:17]}  Rfd8 {[%clk 0:02:13]} 16. Bc4 {[%clk 0:01:12]}  Nf5 {[%clk 0:02:03]} 17. Bc3 {[%clk 0:01:06]}  e6 {[%clk 0:02:03]} 18. Rb5 {[%clk 0:00:48]}  Nxd4 {[%clk 0:01:48]} 19. Rxb7 {[%clk 0:00:47]}  Bxe5 {[%clk 0:01:41]} 20. O-O {[%clk 0:00:46]}  Nc6 {[%clk 0:01:28]} 21. Ra1 {[%clk 0:00:40]}  a5 {[%clk 0:00:57]} 22. g3 {[%clk 0:00:38]}  Bxc3 {[%clk 0:00:48]} 23. bxc3 {[%clk 0:00:38]}  Ne5 {[%clk 0:00:49]} 24. Bb5 {[%clk 0:00:35]}  g5 {[%clk 0:00:27]} 25. h3 {[%clk 0:00:34]}  h5 {[%clk 0:00:26]} 26. Kg2 {[%clk 0:00:32]}  g4 {[%clk 0:00:26]} 27. hxg4 {[%clk 0:00:32]}  hxg4 {[%clk 0:00:27]} 28. Rc7 {[%clk 0:00:24]}  Kg7 {[%clk 0:00:23]} 29. Rc5 {[%clk 0:00:20]}  Kf6 {[%clk 0:00:23]} 30. Bf1 {[%clk 0:00:12]}  Rd2 {[%clk 0:00:20]} 31. Raxa5 {[%clk 0:00:09]}  Rh8 {[%clk 0:00:20]} 32. Rxe5 {[%clk 0:00:09]}  Rb2 {[%clk 0:00:13]} 33. Re4 {[%clk 0:00:05]}  Rd8 {[%clk 0:00:14]} 34. Rxg4 {[%clk 0:00:05]}  Ke7 {[%clk 0:00:14]} 35. Ra7+ {[%clk 0:00:04]}  Kf8 {[%clk 0:00:12]} 36. Rf4 {[%clk 0:00:04]}  f5 {[%clk 0:00:13]} 37. Bc4 {[%clk 0:00:04]}  Rd6 {[%clk 0:00:10]} 38. Bxe6 {[%clk 0:00:03]}  Rxe6 {[%clk 0:00:10]} 39. Rxf5+ {[%clk 0:00:03]}  Ke8 {[%clk 0:00:10]} 40. b4 {[%clk 0:00:04]}  Rb1 {[%clk 0:00:09]} 41. Rb5 {[%clk 0:00:01]}  Rd6 {[%clk 0:00:08]} 42. Rb8+ {[%clk 0:00:01]}  Rd8 {[%clk 0:00:09]} 43. Rxd8+ {[%clk 0:00:02]}  Kxd8 {[%clk 0:00:10]} 44. Ra5 {[%clk 0:00:02]}  Kc8 {[%clk 0:00:11]} 45. Rc5+ {[%clk 0:00:03]}  Kb7 {[%clk 0:00:11]} 46. g4 {[%clk 0:00:04]}  Kb6 {[%clk 0:00:12]} 47. Kg3 {[%clk 0:00:04]}  Rb3 {[%clk 0:00:13]} 48. f3 {[%clk 0:00:05]}  Rb2 {[%clk 0:00:14]} 49. g5 {[%clk 0:00:05]}  Rb1 {[%clk 0:00:15]} 50. Kf4 {[%clk 0:00:05]}  Rg1 {[%clk 0:00:15]} 51. Kf5 {[%clk 0:00:06]}  Rd1 {[%clk 0:00:16]} 52. f4 {[%clk 0:00:06]}  Rf1 {[%clk 0:00:17]} 53. g6 {[%clk 0:00:06]}  Rf3 {[%clk 0:00:18]} 54. Kg5 {[%clk 0:00:06]}  Rg3+ {[%clk 0:00:19]} 55. Kf5 {[%clk 0:00:06]}  Rf3 {[%clk 0:00:19]} 56. Ke5 {[%clk 0:00:06]}  Rg3 {[%clk 0:00:20]} 57. Kf6 {[%clk 0:00:07]}  Rg4 {[%clk 0:00:20]} 58. f5 {[%clk 0:00:07]}  Kb7 {[%clk 0:00:20]} 59. g7 {[%clk 0:00:08]}  Kb6 {[%clk 0:00:19]} 60. Kf7 {[%clk 0:00:08]}  Rf4 {[%clk 0:00:20]} 61. f6 {[%clk 0:00:08]}  Rxb4 {[%clk 0:00:21]} 62. cxb4 {[%clk 0:00:08]} 1-0


[Site "https://www.chess.com"]

[Event "Titled Tuesday Blitz July 6 2021"]
[White "Zubritskiy, Artyom"]
[Black "Elgersma, Onno"]
[WhiteFideId "4181247"]
[BlackFideId "1053531"]
[WhiteElo "2559"]
[BlackElo "2500"]
[Result "0-1"]
[Round "10"]
[TimeControl "180+1"]
[Date "2021.07.06"]
[WhiteClock "0:00:10"]
[BlackClock "0:01:27"]

1. b4 {[%clk 0:03:00]}  Nf6 {[%clk 0:02:59]} 2. Bb2 {[%clk 0:03:01]}  d5 {[%clk 0:02:59]} 3. f4 {[%clk 0:03:01]}  e6 {[%clk 0:02:59]} 4. a3 {[%clk 0:03:01]}  Be7 {[%clk 0:02:58]} 5. Nf3 {[%clk 0:03:01]}  O-O {[%clk 0:02:59]} 6. e3 {[%clk 0:03:02]}  b6 {[%clk 0:02:59]} 7. Be2 {[%clk 0:03:00]}  c5 {[%clk 0:03:00]} 8. O-O {[%clk 0:02:48]}  Nc6 {[%clk 0:02:58]} 9. b5 {[%clk 0:02:46]}  Na5 {[%clk 0:02:57]} 10. Ne5 {[%clk 0:02:36]}  Bb7 {[%clk 0:02:56]} 11. d3 {[%clk 0:02:30]}  Rc8 {[%clk 0:02:53]} 12. Nd2 {[%clk 0:02:27]}  Nd7 {[%clk 0:02:49]} 13. Qe1 {[%clk 0:02:11]}  f6 {[%clk 0:02:48]} 14. Nef3 {[%clk 0:02:07]}  c4 {[%clk 0:02:46]} 15. Bd4 {[%clk 0:01:42]}  cxd3 {[%clk 0:02:42]} 16. cxd3 {[%clk 0:01:30]}  Nc5 {[%clk 0:02:43]} 17. Rb1 {[%clk 0:01:13]}  Qd7 {[%clk 0:02:41]} 18. Qg3 {[%clk 0:01:10]}  Na4 {[%clk 0:02:37]} 19. Nb3 {[%clk 0:01:05]}  Nc3 {[%clk 0:02:32]} 20. Bxc3 {[%clk 0:01:05]}  Rxc3 {[%clk 0:02:33]} 21. Nxa5 {[%clk 0:01:05]}  bxa5 {[%clk 0:02:33]} 22. a4 {[%clk 0:01:03]}  Bc5 {[%clk 0:02:26]} 23. Nd4 {[%clk 0:00:57]}  Ra3 {[%clk 0:02:14]} 24. Ra1 {[%clk 0:00:41]}  Rxa1 {[%clk 0:02:00]} 25. Rxa1 {[%clk 0:00:42]}  Qd6 {[%clk 0:02:01]} 26. Bg4 {[%clk 0:00:33]}  Bc8 {[%clk 0:01:52]} 27. Nc6 {[%clk 0:00:28]}  Bd7 {[%clk 0:01:48]} 28. d4 {[%clk 0:00:22]}  Bb4 {[%clk 0:01:46]} 29. Nxa7 {[%clk 0:00:12]}  Ra8 {[%clk 0:01:39]} 30. Nc6 {[%clk 0:00:12]}  Bxc6 {[%clk 0:01:40]} 31. bxc6 {[%clk 0:00:12]}  Qxc6 {[%clk 0:01:41]} 32. f5 {[%clk 0:00:13]}  exf5 {[%clk 0:01:40]} 33. Bxf5 {[%clk 0:00:13]}  Re8 {[%clk 0:01:37]} 34. Qh3 {[%clk 0:00:12]}  g6 {[%clk 0:01:30]} 35. Bd7 {[%clk 0:00:12]}  Qc3 {[%clk 0:01:28]} 36. Bxe8 {[%clk 0:00:12]}  Qxa1+ {[%clk 0:01:28]} 37. Kf2 {[%clk 0:00:12]}  Qe1+ {[%clk 0:01:28]} 38. Kf3 {[%clk 0:00:13]}  Qf1+ {[%clk 0:01:29]} 39. Kg4 {[%clk 0:00:12]}  h5+ {[%clk 0:01:27]} 40. Kh4 {[%clk 0:00:10]}  Be1+ {[%clk 0:01:26]} 41. g3 {[%clk 0:00:10]}  g5+ {[%clk 0:01:27]} 0-1


[Site "https://www.chess.com"]

[Event "Titled Tuesday Blitz July 6 2021"]
[White "Ahmad, Al Khatib"]
[Black "Ciorgovean, Iustin"]
[WhiteFideId "8103178"]
[BlackFideId "1242911"]
[WhiteElo "2151"]
[BlackElo "2075"]
[Result "1-0"]
[Round "11"]
[TimeControl "180+1"]
[Date "2021.07.06"]
[WhiteClock "0:01:24"]
[BlackClock "0:01:02"]

1. e4 {[%clk 0:03:00]}  c5 {[%clk 0:02:59]} 2. Nf3 {[%clk 0:03:00]}  d6 {[%clk 0:02:59]} 3. Bb5+ {[%clk 0:03:00]}  Nd7 {[%clk 0:02:59]} 4. d4 {[%clk 0:03:00]}  cxd4 {[%clk 0:02:59]} 5. Qxd4 {[%clk 0:03:00]}  a6 {[%clk 0:02:59]} 6. Bxd7+ {[%clk 0:03:00]}  Bxd7 {[%clk 0:03:00]} 7. c4 {[%clk 0:03:01]}  Rc8 {[%clk 0:02:53]} 8. Nc3 {[%clk 0:02:56]}  e5 {[%clk 0:02:48]} 9. Qd3 {[%clk 0:02:55]}  Qc7 {[%clk 0:02:48]} 10. b3 {[%clk 0:02:53]}  b5 {[%clk 0:02:49]} 11. Nd5 {[%clk 0:02:53]}  Qc6 {[%clk 0:02:45]} 12. Nd2 {[%clk 0:02:45]}  Nf6 {[%clk 0:02:34]} 13. O-O {[%clk 0:02:26]}  Nxd5 {[%clk 0:02:32]} 14. exd5 {[%clk 0:02:16]}  Qb7 {[%clk 0:02:11]} 15. f4 {[%clk 0:02:04]}  Be7 {[%clk 0:02:03]} 16. f5 {[%clk 0:01:29]}  Bg5 {[%clk 0:01:02]} 17. Ne4 {[%clk 0:01:26]}  Bxc1 {[%clk 0:01:02]} 18. Nxd6+ {[%clk 0:01:24]} 1-0


[Site "https://www.chess.com"]